bitfinex/quotes_ETHUSD_20251127
["timestamp","ask_amount","ask_price","bid_price","bid_amount"]
[1764248088160,0.3027792,2998.7,2997.4,0.215]
[1764248088387,0.3027792,2998.6,2997.5,0.03336113]
[1764248088568,0.3027792,2998.6,2997.0,3.47330172]
[1764248088569,0.6931,2997.6,2997.0,0.13665713]
[1764248088876,0.76684698,2997.5,2997.0,0.13665713]
[1764248089079,0.30304698,2997.4,2997.0,0.13665713]
[1764248089265,0.30341343,2997.3,2997.0,0.13665713]
[1764248089469,0.30341343,2997.2,2997.0,0.13665713]
[1764248089791,0.80251258,2997.1,2997.0,0.13665713]
[1764248090316,0.80251258,2997.1,2996.1,0.4873]
[1764248090317,1.96495395,2997.1,2996.0,0.17425498]
[1764248090486,0.30341258,2997.0,2996.4,3.75157325]
[1764248090789,0.30341258,2997.0,2996.2,10.103475]
[1764248090790,0.87457982,2998.5,2997.3,0.405504]
[1764248091083,0.30397734,2998.4,2997.6,0.4669]
[1764248091283,0.30397734,2998.3,2997.6,0.4669]
[1764248091599,0.30397734,2998.2,2997.7,0.0333589]
[1764248091895,0.30397734,2998.1,2997.7,0.0333589]
[1764248092103,0.30397734,2998.0,2997.8,1.17944942]
[1764248092305,0.4638,2998.6,2997.8,1.17944942]
[1764248092603,0.30428902,2998.5,2997.9,0.98755668]
[1764248092904,0.30348902,2998.4,2998.3,0.5749]
[1764248093711,0.30348902,2998.4,2998.0,0.6846]
[1764248093869,0.4638,2998.4,2998.1,0.03335445]
[1764248094064,0.4638,2998.4,2997.5,0.72559411]
[1764248094264,0.4638,2998.4,2997.6,0.40618122]
[1764248094473,0.92747982,2998.9,2997.7,0.0333589]
[1764248094780,0.92747982,2998.9,2997.6,1.10848122]
[1764248094781,1.16529462,2998.8,2997.6,1.10848122]
[1764248095094,0.70149462,2998.7,2997.7,0.7023]
[1764248095265,0.70149462,2998.6,2997.7,0.4873]
[1764248095470,0.70149462,2998.5,2997.8,0.24835779]
[1764248095667,4.26204815,2998.9,2997.8,3.58403655]
[1764248095905,0.70157545,2998.8,2997.9,0.35840366]
[1764248096111,0.70157545,2998.7,2997.9,0.35840366]
[1764248096409,0.70157545,2998.6,2997.9,0.35840366]
[1764248096595,0.70157545,2998.5,2997.9,0.35840366]
[1764248096903,0.4638,2998.6,2997.9,0.35840366]
[1764248097108,0.92747982,2998.9,2998.0,0.40277083]
[1764248097109,0.70158972,2998.5,2998.0,0.40277083]
[1764248097314,1.39127982,2998.9,2998.0,0.40277083]
[1764248097520,0.7015728,2998.8,2998.0,0.40277083]
[1764248097672,0.7015728,2998.7,2998.0,0.40277083]
[1764248098003,0.7015728,2998.6,2998.0,0.03335557]
[1764248098168,0.7015728,2998.5,2998.0,0.03335557]
[1764248098371,0.4638,2998.5,2997.9,0.03335668]
[1764248098585,0.4638,2998.5,2997.8,0.215]
[1764248099499,0.4638,2998.5,2997.9,0.03335668]
[1764248099806,0.4638,2998.8,2997.9,0.39177842]
[1764248100100,0.70162291,2998.7,2998.0,3.33555703]
[1764248100271,0.70162291,2998.6,2998.1,0.03335445]
[1764248100472,0.70162291,2998.5,2998.1,0.12645445]
[1764248100686,0.4638,2998.8,2998.1,0.12645445]
[1764248100919,0.70163732,2998.7,2998.1,0.74895625]
[1764248101127,0.4991,2998.2,2997.9,0.215]
[1764248101301,3.79849173,2998.8,2997.6,0.001]
[1764248101302,0.2211,2998.0,2997.6,0.001]
[1764248101474,0.6903,2997.7,2997.6,0.001]
[1764248101675,1.39184974,2997.7,2997.6,0.001]
[1764248101877,0.89554974,2997.7,2997.6,0.001]
[1764248102202,0.4991,2997.7,2997.6,0.001]
[1764248102402,0.9629,2997.7,2997.6,0.001]
[1764248102604,1.66452103,2997.7,2997.6,0.001]
[1764248102840,1.87952103,2997.7,2997.6,0.001]
[1764248103375,2.06742051,2997.7,2997.6,0.001]
[1764248104217,5.40331135,2997.7,2997.6,0.001]
[1764248104782,2.18398062,2997.7,2997.6,0.001]
[1764248104993,1.72018062,2997.7,2997.6,0.001]
[1764248105474,0.51951221,2997.7,2997.6,0.001]
[1764248106118,5.51961218,2997.7,2997.6,0.001]
[1764248106410,5.51961218,2997.7,2996.1,0.1973]
[1764248106411,0.72559411,2997.6,2996.1,0.1973]
[1764248106609,0.87614109,2997.3,2996.1,0.6846]
[1764248106809,2.38900946,2997.5,2996.1,0.6846]
[1764248106810,1.88196243,2997.2,2996.1,0.6846]
[1764248107014,1.00582134,2997.1,2996.1,0.6846]
[1764248107213,1.22082134,2997.0,2996.1,0.1973]
[1764248107507,1.17428347,2996.9,2995.5,0.66158384]
[1764248107685,1.00582134,2996.8,2995.5,0.66158384]
[1764248107886,1.00582134,2996.8,2995.6,0.4873]
[1764248107887,1.00582134,2996.7,2995.6,0.4873]
[1764248108210,0.51951221,2996.6,2995.6,3.8255294]
[1764248108387,0.30451221,2996.5,2995.7,0.72559411]
[1764248108580,0.30451221,2996.5,2995.6,3.8255294]
[1764248108581,0.30451221,2996.4,2995.8,0.45511235]
[1764248108825,0.215,2996.6,2995.0,3.46387877]
[1764248108826,0.6931,2995.7,2995.0,0.125]
[1764248109123,0.30387501,2995.6,2995.0,0.125]
[1764248109281,0.51987501,2995.5,2995.0,0.125]
[1764248109481,0.216,2995.5,2995.0,0.125]
[1764248109689,0.216,2995.4,2995.1,0.49300014]
[1764248109980,0.216,2995.5,2995.2,0.03338675]
[1764248110297,0.216,2995.5,2995.1,0.1466]
[1764248110298,0.194,2995.7,2995.1,0.17998786]
[1764248110500,0.216,2995.6,2995.0,0.125]
[1764248110805,0.216,2995.5,2995.0,0.125]
[1764248111011,0.4783,2995.6,2995.0,0.125]
[1764248111236,1.21315637,2995.6,2995.0,0.125]
[1764248111379,0.216,2995.5,2995.0,0.125]
[1764248111578,0.4783,2995.6,2995.0,0.125]
[1764248111811,0.216,2995.5,2995.1,0.1466]
[1764248112581,0.194,2995.7,2995.1,0.1466]
[1764248112788,0.194,2995.7,2995.2,0.03338675]
[1764248112789,0.216,2995.6,2995.2,0.03338675]
[1764248113092,0.1995,2996.2,2995.6,0.4664]
[1764248113295,0.216,2996.1,2995.7,0.49978117]
[1764248113483,0.1995,2996.2,2995.7,0.03338117]
[1764248113803,0.1995,2996.2,2995.3,0.4527]
[1764248113804,0.216,2996.1,2995.3,0.4527]
[1764248113987,0.6983,2996.2,2995.3,0.4527]
[1764248114193,0.216,2996.0,2995.4,3.33845229]
[1764248114394,0.216,2996.0,2995.5,0.71297146]
[1764248114998,0.7148,2996.0,2995.4,0.03338452]
[1764248115184,0.7148,2996.0,2995.5,0.0333834]
[1764248115384,0.1995,2996.2,2995.3,0.4527]
[1764248115385,0.216,2995.9,2995.3,0.4527]
[1764248115625,0.216,2995.9,2995.4,0.03338452]
[1764248115825,3.53713547,2996.2,2995.3,0.4527]
[1764248115996,0.216,2996.0,2995.4,0.74944258]
[1764248116511,0.2152,2996.0,2995.4,1.20214258]
[1764248116714,3.55304485,2996.0,2995.4,0.74944258]
[1764248117022,3.55304485,2996.0,2995.1,0.5993]
[1764248117023,3.55304734,2996.0,2995.1,0.5993]
[1764248117225,3.55304734,2996.0,2995.2,3.33866943]
[1764248117396,0.2152,2996.0,2995.2,7.13004464]
[1764248117585,0.2152,2996.0,2995.3,0.48608563]
[1764248117793,0.2152,2996.0,2995.3,0.4527]
[1764248118017,0.2152,2996.0,2995.4,0.71300446]
[1764248118522,3.33737817,2996.4,2995.9,0.4678]
[1764248118722,0.216,2996.3,2995.9,0.4678]
[1764248118927,3.69929409,2996.9,2996.0,0.03337783]
[1764248119091,0.216,2996.6,2996.2,0.4678]
[1764248119485,0.216,2996.6,2996.3,0.1906]
[1764248119899,0.216,2996.6,2995.6,0.72559411]
[1764248120104,0.216,2996.6,2996.0,0.1906]
[1764248120419,0.216,2996.6,2996.0,3.52834249]
[1764248120634,0.216,2996.6,2996.1,0.35283425]
[1764248120818,0.216,2996.6,2996.1,0.80553425]
[1764248121128,3.53079493,2996.9,2996.1,0.80553425]
[1764248121129,3.33693697,2996.8,2996.1,0.80553425]
[1764248121326,3.53353259,2996.9,2996.1,0.80553425]
[1764248121498,0.1967,2996.9,2996.1,0.80553425]
[1764248121714,3.5335268,2996.9,2996.2,0.76716605]
[1764248122109,3.3368268,2996.9,2996.2,0.76716605]
[1764248122314,3.55272602,2997.0,2996.2,1.21986605]
[1764248122511,0.216,2997.0,2996.3,6.67489904]
[1764248122825,3.55220398,2997.5,2996.4,0.216]
[1764248123031,6.88840796,2997.5,2996.5,0.7343599]
[1764248123406,6.88840796,2997.5,2996.6,0.4527]
[1764248123651,3.55220398,2997.5,2996.6,0.4527]
[1764248124311,0.002,2997.6,2996.8,0.72559411]
[1764248125123,0.002,2997.6,2996.8,0.216]
[1764248125359,0.5008,2997.6,2996.5,1.45995401]
[1764248125652,0.002,2997.6,2996.6,1.39429411]
[1764248125808,0.002,2997.6,2996.8,0.72559411]
[1764248126011,0.002,2997.6,2996.9,0.4527]
[1764248127207,0.002,2997.6,2996.9,0.6677]
[1764248127804,1.05283947,2997.6,2996.3,0.1906]
[1764248128008,0.4988,2997.5,2996.3,0.6433]
[1764248128246,0.216,2997.4,2996.3,0.1906]
[1764248128547,0.51976197,2997.4,2996.4,0.03337338]
[1764248128716,10.50780809,2997.3,2996.4,0.03337338]
[1764248128923,1.10275701,2997.2,2996.4,0.03337338]
[1764248129116,1.60155701,2997.2,2996.4,0.03337338]
[1764248129321,0.4988,2997.1,2996.4,0.03337338]
[1764248129517,0.4988,2997.1,2996.3,0.1906]
[1764248129719,0.4988,2997.1,2996.4,0.03337338]
[1764248130013,0.46571729,2997.1,2996.4,0.03337338]
[1764248130214,0.46571729,2997.1,2996.3,0.1906]
[1764248130439,0.46571729,2997.1,2996.0,0.1906]
[1764248130645,0.46571729,2997.1,2996.1,0.03337672]
[1764248130840,10.01001,2997.0,2996.1,0.03337672]
[1764248131054,0.216,2996.9,2996.0,0.1906]
[1764248131350,0.4127,2996.9,2996.1,0.03337672]
[1764248131641,0.4127,2996.9,2995.8,0.91619411]
[1764248131845,0.30411429,2996.8,2995.9,0.03337895]
[1764248132164,0.30411429,2996.7,2995.5,0.1906]
[1764248132325,0.30411429,2996.6,2995.5,0.1906]
[1764248132639,0.4988,2996.7,2995.6,0.48608229]
[1764248132851,6.67445352,2996.5,2995.6,0.48608229]
[1764248133209,10.51048028,2996.5,2995.6,0.87581048]
[1764248133413,10.01168028,2996.5,2995.6,0.4527]
[1764248133609,0.4988,2996.4,2995.5,0.1906]
[1764248134448,0.4988,2996.4,2995.6,0.03338229]
[1764248135047,6.8895639,2996.5,2995.6,0.6677]
[1764248135222,0.3043612,2996.4,2995.6,0.4527]
[1764248135614,6.8895639,2996.5,2995.6,0.4527]
[1764248136051,10.72564585,2996.5,2995.6,0.4527]
[1764248136345,6.6745639,2996.5,2995.7,0.03338117]
[1764248136657,6.66552954,2996.5,2995.7,0.215]
[1764248136947,6.67400806,2996.7,2995.7,4.00576449]
[1764248137142,0.30441291,2996.6,2995.7,0.215]
[1764248137348,0.4988,2996.6,2995.7,0.215]
[1764248137551,0.4988,2996.6,2995.4,0.4537]
[1764248137552,1.35539107,2996.5,2995.4,0.001]
[1764248137747,0.30440986,2996.4,2995.4,0.001]
[1764248137948,0.215,2996.3,2995.6,0.001]
[1764248138316,0.4988,2996.2,2995.6,0.001]
[1764248138849,6.6753446,2996.1,2995.6,0.001]
[1764248139754,0.4988,2996.0,2995.6,0.001]
[1764248139960,3.3376723,2996.1,2995.6,0.4672]
[1764248140268,7.1469446,2996.1,2995.6,0.001]
[1764248141037,6.6745446,2996.1,2995.6,0.001]
[1764248141434,3.3368723,2996.1,2995.6,0.4672]
[1764248141634,6.6745446,2996.1,2995.6,0.4672]
[1764248141836,6.6745446,2996.1,2995.6,0.001]
[1764248142038,0.4724,2996.0,2995.6,0.001]
[1764248142555,0.4971,2995.7,2995.6,0.001]
[1764248143059,4.61221396,2995.7,2995.6,0.001]
[1764248143226,5.31390159,2995.7,2995.6,0.001]
[1764248143427,5.71940559,2995.7,2995.6,0.001]
[1764248144072,0.405504,2995.6,2993.4,4.02180742]
[1764248144366,0.1966,2995.1,2993.5,3.37391214]
[1764248144570,0.4116,2995.1,2993.6,3.34044427]
[1764248144744,0.884,2995.1,2993.7,0.03340348]
[1764248144939,4.52738268,2995.1,2993.7,0.03340348]
[1764248145568,7.86616936,2995.1,2994.1,0.1789]
[1764248145861,0.4116,2995.1,2994.2,0.4995979]
[1764248146026,0.4116,2995.1,2994.2,0.4662]
[1764248146027,0.215,2995.1,2994.2,0.4662]
[1764248146554,0.4724,2995.8,2995.0,0.4551]
[1764248146755,0.215,2995.7,2995.0,0.4551]
[1764248146957,3.3382294,2995.6,2995.0,0.4551]
[1764248147258,3.3382294,2995.6,2995.1,0.22558786]
[1764248147632,0.215,2995.7,2995.2,0.4662]
[1764248147945,3.33788474,2996.0,2995.6,0.4551]
[1764248148556,0.215,2996.1,2995.6,0.4551]
[1764248148768,0.215,2996.1,2995.6,0.9213]
[1764248148976,6.67378536,2996.8,2996.0,0.4551]
[1764248149134,0.51871179,2996.7,2996.0,0.4551]
[1764248149334,0.99111179,2996.7,2995.9,0.1906]
[1764248149656,0.6874,2996.7,2995.9,0.1906]
[1764248150537,0.4724,2996.6,2995.5,3.52889697]
[1764248150739,0.4724,2996.6,2995.5,0.1866]
[1764248150934,0.4724,2996.6,2995.6,0.35250109]
[1764248150935,6.67445352,2996.5,2995.6,0.35250109]
[1764248151140,6.67445352,2996.5,2995.5,0.1866]
[1764248151345,0.4724,2996.4,2995.5,0.1866]
[1764248151545,0.215,2996.3,2995.5,0.1866]
[1764248151856,0.215,2996.3,2995.5,3.99105271]
[1764248152059,0.215,2996.3,2995.6,0.4662]
[1764248152243,3.33722676,2996.5,2995.7,0.39910527]
[1764248152560,7.14685352,2996.5,2995.7,0.39910527]
[1764248153635,6.67445352,2996.5,2995.7,0.39910527]
[1764248153834,0.4724,2996.4,2995.5,3.52493705]
[1764248154335,6.67445352,2996.5,2995.6,0.49958229]
[1764248154535,3.33722676,2996.5,2995.6,0.49958229]
[1764248154740,3.33722676,2996.5,2995.6,0.4662]
[1764248155463,3.55215935,2996.6,2995.7,6.67623592]
[1764248155767,6.8893187,2996.6,2995.8,1.18044359]
[1764248155966,3.55215935,2996.6,2995.8,1.18044359]
[1764248156134,6.8893187,2996.6,2995.8,0.71424359]
[1764248156571,6.8893187,2996.6,2995.8,0.71196159]
[1764248156755,6.8893187,2996.6,2995.8,0.70396159]
[1764248156946,6.8893187,2996.6,2995.9,0.40020796]
[1764248157274,7.3617187,2996.6,2995.9,0.39620796]
[1764248157475,7.3637187,2996.6,2995.9,0.39620796]
[1764248160469,0.4971,2996.0,2995.5,0.001]
[1764248160767,0.494,2995.6,2995.5,0.001]
[1764248160938,0.215,2996.2,2995.5,0.001]
[1764248161341,0.99205598,2996.2,2995.5,0.001]
[1764248161567,0.6874,2996.2,2995.5,0.001]
[1764248161742,3.33778371,2996.0,2995.5,0.001]
[1764248162067,3.33772021,2996.1,2995.5,0.4672]
[1764248162256,3.33744952,2996.3,2995.5,0.4672]
[1764248162458,3.33722676,2996.5,2995.6,0.215]
[1764248162849,3.33722676,2996.5,2995.7,0.71458117]
[1764248163056,3.33722676,2996.5,2995.8,0.44706929]
[1764248163252,3.33722676,2996.5,2995.8,0.91326929]
[1764248163770,0.002,2996.6,2995.9,0.4662]
[1764248164074,0.0012,2996.6,2995.9,0.4662]
[1764248164370,0.0012,2996.6,2996.5,0.6437]
[1764248165063,0.0012,2996.6,2996.5,1.1099]
[1764248165261,0.0012,2996.6,2996.5,1.66906059]
[1764248165662,0.0012,2996.6,2996.5,1.66106059]
[1764248165865,0.0012,2996.6,2996.5,5.71657046]
[1764248166252,0.002,2996.9,2996.7,11.603731]
[1764248166454,0.002,2996.9,2996.8,16.59524885]
[1764248166679,0.002,2996.9,2996.5,1.4733547]
[1764248166974,0.1945,2996.9,2996.1,0.4662]
[1764248167171,0.1945,2996.9,2995.6,0.4662]
[1764248167172,0.2149,2996.5,2995.6,0.4662]
[1764248167372,0.2149,2996.5,2995.7,0.215]
[1764248167744,0.2149,2996.5,2995.8,3.55299635]
[1764248167745,3.55223226,2996.5,2995.8,3.55299635]
[1764248167945,6.88956452,2996.5,2995.7,0.72559411]
[1764248168150,6.88956452,2996.5,2995.8,0.215]
[1764248168151,7.57852097,2996.5,2995.8,0.215]
[1764248168673,3.55223226,2996.5,2995.9,0.215]
[1764248168976,6.88956452,2996.5,2996.0,0.215]
[1764248169575,6.88956452,2996.5,2996.1,0.215]
[1764248169764,0.4724,2996.4,2996.1,0.215]
[1764248170090,0.4724,2996.4,2996.0,0.215]
[1764248170251,0.1945,2996.9,2995.6,0.4662]
[1764248170252,0.4543,2996.7,2996.1,0.24837672]
[1764248170592,0.4543,2996.7,2995.5,0.001]
[1764248170746,1.38018707,2996.6,2995.6,0.215]
[1764248170950,1.38018707,2996.6,2995.5,0.001]
[1764248171173,0.4543,2996.5,2995.6,0.215]
[1764248171347,0.4543,2996.5,2995.5,3.37271059]
[1764248171348,0.30423511,2996.4,2995.5,0.216]
[1764248171548,0.30423511,2996.4,2995.5,0.001]
[1764248171755,0.69447222,2996.4,2995.6,0.215]
[1764248172051,6.67489904,2996.3,2995.7,0.215]
[1764248172654,3.33744952,2996.3,2995.7,0.215]
[1764248172973,6.67489904,2996.3,2995.7,0.215]
[1764248173170,6.67489904,2996.3,2995.8,0.215]
[1764248173381,7.15549904,2996.3,2995.9,0.215]
[1764248173578,7.89243617,2996.3,2995.5,0.001]
[1764248173880,3.3376723,2996.1,2995.6,0.215]
[1764248174193,0.21387222,2996.4,2995.5,3.33930881]
[1764248174484,6.97875169,2996.6,2995.7,0.24838117]
[1764248174780,0.74593517,2996.5,2995.7,0.03338117]
[1764248174955,0.74593517,2996.5,2995.8,0.215]
[1764248175154,0.74593517,2996.5,2995.6,0.4838]
[1764248175564,0.74593517,2996.5,2995.7,0.215]
[1764248175779,1.22653517,2996.5,2995.7,0.215]
[1764248175982,6.67489904,2996.3,2995.6,0.4838]
[1764248176180,6.67489904,2996.3,2995.7,0.215]
[1764248176380,6.67489904,2996.3,2995.8,0.215]
[1764248176961,6.67689904,2996.3,2995.8,0.215]
[1764248177783,3.33944952,2996.3,2995.9,0.03337895]
[1764248178381,7.94783907,2996.3,2996.0,0.215]
[1764248178787,4.12978955,2996.3,2996.0,0.215]
[1764248178990,0.002,2996.3,2996.1,0.03337672]
[1764248179164,0.002,2996.3,2996.2,0.4506]
[1764248180768,0.002,2996.3,2996.1,0.4036]
[1764248180969,0.002,2996.3,2996.2,0.4506]
[1764248181169,0.002,2996.3,2995.6,0.72559411]
[1764248181170,0.4912,2996.2,2995.7,3.33810581]
[1764248181365,0.4912,2996.2,2995.6,0.72559411]
[1764248181573,0.4912,2996.2,2995.8,0.214]
[1764248181786,0.4912,2996.2,2995.9,0.03337895]
[1764248182584,0.002,2996.3,2995.9,0.03337895]
[1764248182890,3.33950016,2996.3,2996.1,0.4506]
[1764248183185,0.002,2996.3,2996.2,0.4506]
[1764248183572,0.002,2996.3,2996.2,0.6646]
[1764248183782,0.002,2996.3,2996.2,0.214]
[1764248184165,0.002,2996.3,2996.2,0.6979756]
[1764248184369,0.002,2996.3,2996.2,0.6646]
[1764248184770,0.002,2996.3,2996.2,0.214]
[1764248184972,1.13109811,2996.2,2994.6,0.1733]
[1764248185167,1.13109811,2996.2,2994.1,0.08610142]
[1764248185168,0.405504,2995.5,2994.1,0.08610142]
[1764248185379,0.405504,2995.5,2994.3,0.215]
[1764248185380,0.3073,2994.7,2994.3,0.215]
[1764248185574,0.3073,2994.7,2994.4,0.03339567]
[1764248186495,0.3073,2994.7,2994.3,0.215]
[1764248186684,3.61716022,2994.7,2994.3,0.215]
[1764248186878,3.61716022,2994.7,2994.4,0.03339567]
[1764248187062,6.95640844,2994.7,2994.1,0.08610142]
[1764248187460,7.43700844,2994.7,2994.2,0.215]
[1764248187666,0.4806,2994.6,2994.3,0.215]
[1764248187866,0.4798,2994.6,2994.3,0.215]
[1764248188198,3.53084867,2994.8,2994.3,0.215]
[1764248188892,3.33889816,2995.0,2994.4,0.03339567]
[1764248189191,3.33889816,2995.0,2994.5,0.03339455]
[1764248189391,3.33889816,2995.0,2994.4,0.03339567]
[1764248189594,6.67779632,2995.0,2994.3,1.06925334]
[1764248189795,0.1917,2995.1,2994.4,0.03339567]
[1764248189995,0.215,2995.5,2994.5,0.44423217]
[1764248190296,0.18401978,2995.3,2994.5,0.65923217]
[1764248190698,0.18401978,2995.3,2994.6,7.19578278]
[1764248190996,3.33843665,2995.5,2994.7,0.03339232]
[1764248191167,3.52989776,2995.7,2994.7,0.51719232]
[1764248191370,3.52989776,2995.7,2994.8,0.71957817]
[1764248191592,6.86809552,2995.7,2994.9,0.215]
[1764248192288,7.34869552,2995.7,2994.9,0.215]
[1764248193069,7.34869552,2995.7,2994.9,3.55397613]
[1764248193268,4.01049776,2995.7,2994.9,3.55397613]
[1764248193512,0.6723,2995.7,2995.0,0.03338898]
[1764248193695,0.1917,2995.7,2995.0,0.51718898]
[1764248194003,6.8673791,2996.0,2995.1,0.4107]
[1764248194175,3.5295033,2996.0,2995.1,0.8945]
[1764248194377,0.4806,2995.9,2995.2,0.214]
[1764248194797,0.4806,2995.9,2995.3,0.214]
[1764248194979,3.33800654,2995.8,2995.4,0.03338452]
[1764248195180,3.81853408,2995.9,2995.4,0.03338452]
[1764248195380,3.81853408,2995.9,2995.3,3.5525584]
[1764248195699,3.81853408,2995.9,2995.3,0.214]
[1764248196078,7.15646816,2995.9,2995.3,0.214]
[1764248196397,7.15646816,2995.9,2995.3,3.55248968]
[1764248196398,3.81853408,2995.9,2995.3,3.55248968]
[1764248196601,3.81853408,2995.9,2995.4,0.214]
[1764248196804,3.81853408,2995.9,2995.1,3.53439031]
[1764248196805,7.15646816,2995.9,2995.5,0.214]
[1764248197117,0.4912,2995.6,2995.1,0.1957]
[1764248197277,0.4912,2995.6,2995.2,0.214]
[1764248197786,0.4912,2995.3,2994.9,0.001]
[1764248197989,0.4875,2995.2,2995.0,0.214]
[1764248198305,0.4875,2995.2,2994.9,0.001]
[1764248198807,0.4875,2995.2,2995.0,0.214]
[1764248199004,3.8261834,2995.2,2995.0,0.214]
[1764248199620,3.33800654,2995.8,2995.1,0.6463]
[1764248199932,7.15661308,2995.8,2995.2,0.214]
[1764248200085,7.15661308,2995.8,2995.2,0.03338675]
[1764248200285,3.81860654,2995.8,2995.3,0.214]
[1764248200511,0.4652,2996.2,2995.4,0.214]
[1764248200710,1.81727858,2996.1,2995.1,0.6885]
[1764248200913,1.51316048,2996.1,2995.2,0.214]
[1764248201110,3.33778371,2996.0,2995.2,4.07877135]
[1764248201408,6.67556742,2996.0,2995.2,4.07877135]
[1764248201608,6.67556742,2996.0,2995.3,0.4928]
[1764248201816,7.49444021,2996.0,2995.3,0.4928]
[1764248202511,7.49444021,2996.0,2995.4,0.03338452]
[1764248202720,0.1985,2995.9,2995.1,0.6885]
[1764248202885,0.1985,2995.9,2995.2,0.214]
[1764248203082,3.33800654,2995.8,2995.3,0.03338563]
[1764248203293,3.33800654,2995.8,2995.3,3.37194866]
[1764248203508,3.33800654,2995.8,2995.3,0.52618563]
[1764248203809,0.4987,2995.4,2994.9,0.001]
[1764248204009,0.495,2995.0,2994.9,0.001]
[1764248204390,0.9602,2995.0,2994.9,0.001]
[1764248204722,1.45323117,2995.0,2994.9,0.001]
[1764248205016,0.9602,2995.0,2994.9,0.001]
[1764248205180,4.29909816,2995.0,2994.9,0.001]
[1764248207935,3.83389816,2995.0,2994.9,0.001]
[1764248208294,3.33889816,2995.0,2994.9,0.001]
[1764248208490,6.67736742,2995.2,2994.9,0.001]
[1764248208891,3.33868371,2995.2,2994.9,0.001]
[1764248209121,6.67736742,2995.2,2994.9,0.001]
[1764248209287,3.33834084,2995.5,2994.9,0.001]
[1764248209613,0.71418022,2995.4,2994.9,0.001]
[1764248209998,0.4652,2995.3,2994.9,0.001]
[1764248210400,0.4987,2995.0,2994.9,0.001]
[1764248211132,0.4652,2995.3,2994.9,0.001]
[1764248211429,0.4987,2995.0,2994.9,0.001]
[1764248211588,1.68070504,2995.0,2994.9,0.001]
[1764248213220,1.21550504,2995.0,2994.9,0.001]
[1764248213415,4.5544032,2995.0,2994.9,0.001]
[1764248213830,3.83679816,2995.0,2994.9,0.001]
[1764248214188,3.33834084,2995.5,2994.9,0.4578]
[1764248214409,0.30448144,2995.4,2994.9,0.001]
[1764248214802,10.01502252,2995.5,2994.9,0.001]
[1764248214997,0.30449429,2995.4,2994.9,0.001]
[1764248215623,6.67712748,2995.3,2994.9,0.001]
[1764248217216,3.33856374,2995.3,2994.9,0.001]
[1764248217616,3.33834084,2995.5,2994.9,0.001]
[1764248217797,6.67672286,2995.5,2994.9,0.001]
[1764248218003,7.14192286,2995.5,2994.9,0.001]
[1764248218204,10.48030488,2995.5,2994.9,0.001]
[1764248218498,0.30458095,2995.4,2994.9,0.001]
[1764248218691,0.4987,2995.0,2994.9,0.001]
[1764248219810,4.30279816,2995.0,2994.9,0.001]
[1764248220610,3.83759816,2995.0,2994.9,0.001]
[1764248221523,4.30279816,2995.0,2994.9,0.001]
[1764248221830,3.83759816,2995.0,2994.9,0.001]
[1764248222536,3.33889816,2995.0,2994.9,0.001]
[1764248224090,10.01543695,2995.4,2994.9,0.001]
[1764248224296,0.30455374,2995.3,2995.0,0.4928]
[1764248224497,0.30455374,2995.3,2994.9,0.001]
[1764248224498,0.4652,2995.4,2994.9,0.001]
[1764248224740,0.4652,2995.4,2994.9,0.215]
[1764248225695,6.67601308,2995.8,2994.9,0.215]
[1764248225890,0.002,2995.9,2995.7,0.1835]
[1764248226127,0.002,2995.9,2995.8,0.4959]
[1764248226493,0.002,2995.9,2995.8,0.9813]
[1764248226692,0.002,2995.9,2995.8,4.79100602]
[1764248227603,0.002,2996.3,2995.9,0.72559411]
[1764248227826,0.002,2996.3,2996.2,0.6787]
[1764248228125,0.002,2996.3,2996.2,4.50166091]
[1764248228324,0.002,2996.3,2996.2,4.71566091]
[1764248228538,0.002,2996.3,2996.2,5.52099407]
[1764248229034,0.002,2996.3,2996.2,1.69803316]
[1764248229336,0.002,2996.3,2996.2,0.8927]
[1764248229496,0.002,2996.3,2996.2,4.71566091]
[1764248230527,0.002,2996.3,2996.2,1.3781]
[1764248230731,0.002,2996.3,2996.2,4.71566091]
[1764248231308,0.002,2996.3,2996.2,4.50166091]
[1764248231494,0.002,2996.3,2996.2,5.57215345]
[1764248231901,0.002,2996.3,2996.2,6.29774756]
[1764248232206,0.002,2996.3,2996.2,6.08374756]
[1764248232410,0.002,2996.3,2996.2,13.75671756]
[1764248232726,0.002,2996.6,2996.2,20.43183938]
[1764248232904,0.002,2996.6,2996.5,4.43631457]
[1764248233106,0.002,2996.9,2996.5,4.43631457]
[1764248233107,0.002,2996.9,2996.5,16.83301768]
[1764248233310,0.002,2996.9,2996.8,9.37501711]
[1764248233697,0.002,2996.9,2996.8,9.83741711]
[1764248234324,0.002,2996.9,2996.8,13.17430979]
[1764248234532,0.002,2996.9,2996.8,14.74567345]
[1764248235440,0.0012,2996.9,2996.8,14.74567345]
[1764248237049,0.0012,2996.9,2996.8,6.09095045]
[1764248237210,0.0012,2996.9,2996.8,4.73358679]
[1764248237404,0.0012,2996.9,2996.8,5.19598679]
[1764248237709,0.0012,2996.9,2996.8,4.47039268]
[1764248238041,0.0012,2996.9,2996.8,5.19598679]
[1764248238239,0.0012,2996.9,2996.8,4.98198679]
[1764248238416,0.0012,2996.9,2996.8,6.02788543]
[1764248238618,0.002,2997.6,2996.9,0.92439411]
[1764248239141,0.002,2997.6,2997.0,0.0333667]
[1764248239841,0.002,2997.6,2997.1,0.214]
[1764248240139,0.002,2997.6,2997.5,0.4571]
[1764248240326,0.002,2997.6,2997.5,0.6711]
[1764248240830,0.002,2997.6,2997.5,4.00721342]
[1764248241034,0.002,2997.6,2997.5,5.20395654]
[1764248241529,0.002,2997.6,2997.5,4.98995654]
[1764248241731,0.002,2997.6,2997.5,5.20395654]
[1764248242239,0.002,2997.6,2997.5,5.92955065]
[1764248243138,0.002,2997.6,2997.5,5.71555065]